Cogmind - Beta 13 @@@ ROGUE MODE // 2024.04.02 @ 00:15:28 Player: complexblob Result: Destroyed by G-34 Mercenary with Small Laser Performance ------------- Evolutions (0) 0 Regions Visited (1) 200 Robots Destroyed (14) 70 Value Destroyed (236) 236 Prototype IDs (2) 40 Alien Tech Used (0) 0 Bonus (0) 0 TOTAL SCORE: 546 Bonus ------- None Cogmind --------- Core Integrity 0/250 Matter 256/300 Energy 250/250 System Corruption 0% Temperature Cool (19) Movement Core (500) Ox9 Location -10/Materials Parts ------- > --- POWER (1) -------- Ion Engine > --- PROPULSION (2) --- (None) > --- UTILITY (2) ------ Large Storage Unit Signal Interpreter > --- WEAPON (2) ------- Assault Rifle Light Assault Rifle > --- INVENTORY (15) --- Targeting Computer Light Assault Rifle Peak State ------------ > --- POWER ------------ Light Ion Engine > --- PROPULSION ------- Wheel Wheel > --- UTILITY ---------- Large Storage Unit Large Storage Unit > --- WEAPON ----------- Assault Rifle Assault Rifle > --- INVENTORY -------- (None) [Rating: 7] Favorites ----------- Power Light Ion Engine Engine Light Ion Engine Propulsion Wheel Leg Aluminum Leg Wheel Wheel Flight Unit Flight Unit Utility Large Storage Unit Storage Large Storage Unit Processor Signal Interpreter Weapon Assault Rifle Ballistic Gun Assault Rifle Launcher Grenade Launcher Special Weapon Mining Laser Build | -11 -10 ------- Run | Yrd Mat Slots Evolved . | . . Power . | . . Propulsion . | . . Utility . | . . Weapon . | . . Parts Attached 17 | 6 11 Power 2 | 1 1 Engine 2 | 1 1 Core . | . . Reactor . | . . Propulsion 5 | 3 2 Treads . | . . Leg 2 | 1 1 Wheel 2 | 2 . Hover . | . . Flight 1 | . 1 Utility 3 | . 3 Device . | . . Storage 2 | . 2 Processor 1 | . 1 Hackware . | . . Protection . | . . Artifact . | . . Weapon 7 | 2 5 Energy Gun . | . . Energy Cannon . | . . Ballistic Gun 5 | 2 3 Ballistic Cannon . | . . Launcher 1 | . 1 Special Weapon 1 | . 1 Impact Weapon . | . . Slashing Weapon . | . . Piercing Weapon . | . . Special Melee Weapon . | . . Unidentified Prototypes . | . . Parts Lost 8 | . 8 Power 1 | . 1 Propulsion 4 | . 4 Utility . | . . Weapon 3 | . 3 Highest Loss Streak 5 | . 5 To Critical Strikes . | . . Average Slot Usage (%) 68 | . 68 Engine 5 | . 5 Leg 4 | . 4 Wheel 8 | . 8 Flight 1 | . 1 Storage 13 | . 13 Processor 12 | . 12 Ballistic Gun 17 | . 17 Launcher 3 | . 3 Special Weapon 1 | . 1 Naked Turns . | . . Heaviest Build 28 | 7 28 Greatest Support 20 | 20 20 Greatest Overweight (x) 7 | . 7 Average Overweight (x) 1 | . 2 Largest Inventory Capacity 15 | 5 15 Average Capacity 13 | 5 14 Most Carried 4 | 2 4 Average Carried 1 | . 2 Final Capacity 15 | 5 15 Final Carried 2 | . 2 Class Distribution -------------------- 100% | Mutant Dominant Class ---------------- Mutant | -10/Materials Resources | -11 -10 ----------- Run | Yrd Mat Matter Collected 491 | 307 184 Remotely . | . . Salvage Created 286 | 56 230 Parts 15 | 2 13 Haulers Intercepted 1 | . 1 Recyclers Shooed . | . . Parts Field Recycled . | . . Retrieved Matter . | . . Parts Self-Destructed . | . . Prevented . | . . Kills | -11 -10 ------- Run | Yrd Mat Combat Hostiles Destroyed 9 | 1 8 Guns 6 | 1 5 AOE 3 | . 3 Classes Destroyed 7 | 2 5 Worker 1 | 1 . Builder 1 | . 1 Hauler 1 | . 1 Operator 1 | . 1 Watcher 1 | . 1 Swarmer 5 | . 5 Grunt 4 | 1 3 Best Kill Streak 4 | 1 4 Combat Bots Only 4 | 1 4 Max Kills in Single Turn 2 | 1 2 Gunslinging . | . . Exploded 1 | . 1 Melee . | . . Uniques/NPCs Destroyed . | . . Combat | -11 -10 -------- Run | Yrd Mat Hostile Shots Fired 107 | 8 99 Missed 32 | 4 28 Damage Taken 831 | 44 787 Core 253 | 10 243 Absorbed by Shields . | . . Core Remaining (%) 96 | 96 . Volleys Fired 63 | 8 55 Largest 2 | 2 2 Hottest 50 | 40 50 Shots Fired 84 | 16 68 Gun 79 | 16 63 Cannon . | . . Launcher 5 | . 5 Special . | . . Kinetic 79 | 16 63 Thermal . | . . Explosive 5 | . 5 Electromagnetic . | . . Robot Hit Streak 6 | 3 6 Robot Miss Streak 3 | 3 3 Penetration Max . | . . Secondary Targets . | . . Shots Hit Robots 46 | 7 39 Core Hits 24 | 3 21 Critical Kills . | . . Critical Parts Destroyed . | . . Critical Strikes . | . . Melee Attacks . | . . Impact . | . . Slashing . | . . Piercing . | . . Sneak Attacks . | . . Combat Hostiles . | . . Follow-up Attacks . | . . Damage Inflicted 841 | 91 750 Guns 489 | 91 398 Cannons . | . . Explosions 352 | . 352 Melee . | . . Ramming . | . . Kinetic 489 | 91 398 Thermal . | . . Explosive 352 | . 352 Electromagnetic . | . . Impact . | . . Slashing . | . . Piercing . | . . Highest Corruption . | . . Average Corruption . | . . Corruption Purged . | . . Corruption Blocked . | . . Overload Shots . | . . Overflow Damage 18 | . 18 Projectiles . | . . Explosions 18 | . 18 Melee . | . . Knockbacks . | . . Impact . | . . Kinetic . | . . Secondary . | . . Self-Inflicted Damage 107 | . 107 Shots 4 | . 4 Rammed . | . . Targets Rammed . | . . Kicked . | . . Crushed . | . . Highest Temperature 16 | . 16 Average Temperature 5 | . 5 Received Heat Transfer 234 | 24 210 Siege Activations . | . . Robots Corrupted . | . . Combat Hostiles . | . . Parts Fried . | . . Impact Corruptions . | . . Robots Melted . | . . Combat Hostiles . | . . Parts Melted . | . . Heat Transferred . | . . Parts Sabotaged . | . . Parts Stolen . | . . Parts Stripped . | . . Power Chain Reactions . | . . Alert | -11 -10 ------- Run | Yrd Mat Peak Influence 187 | 25 187 Initial 16 | . 16 Average 74 | 7 86 Maximum Alert Level . | . . Low Security (%) 100 | 100 100 Level 1 . | . . Level 2 . | . . Level 3 . | . . Level 4 . | . . Level 5 . | . . High Security . | . . Max Security . | . . Squads Dispatched 3 | . 3 Investigation 2 | . 2 Extermination . | . . Reinforcement 1 | . 1 Assault . | . . Garrison . | . . Intercept . | . . Searches Triggered . | . . Construction Impeded . | . . Haulers Reinforced . | . . Active Scanning Responses . | . . Cargo Convoy Interrupts . | . . Stealth | -11 -10 --------- Run | Yrd Mat Distress Signals 2 | . 2 Communications Jammed . | . . Distress Signals . | . . Times Spotted 21 | 1 20 Peak Tracking Total 6 | 1 6 Tactical Retreats . | . . Traps | -11 -10 ------- Run | Yrd Mat Traps Triggered 1 | . 1 Indirectly . | . . Trap Hack Attempts . | . . Triggered . | . . Disarmed . | . . Reprogrammed . | . . Reused . | . . Traps Extracted . | . . Installed . | . . Triggered . | . . Machines | -11 -10 ---------- Run | Yrd Mat Machines Disabled 1 | . 1 Max in Single Turn 1 | . 1 Machines Repaired . | . . Machines Dismantled . | . . Machines Sabotaged . | . . Overloaded Fab Kills . | . . Hacking | -11 -10 --------- Run | Yrd Mat Machines Accessed 3 | . 3 Terminals 1 | . 1 Fabricators . | . . Repair Stations 1 | . 1 Recycling Units 1 | . 1 Scanalyzers . | . . Garrison Access . | . . Total Hacks 12 | . 12 Successful 9 | . 9 Failed 3 | . 3 Catastrophic 1 | . 1 Database Lockouts . | . . Manual . | . . Terminals 5 | . 5 Fabricators . | . . Repair Stations 2 | . 2 Recycling Units 5 | . 5 Scanalyzers . | . . Garrison Access . | . . Terminal Hacks 5 | . 5 Record 3 | . 3 Prototype ID Bank 1 | . 1 Dispatch Records 1 | . 1 Fabricator Hacks . | . . Repair Station Hacks . | . . Recycling Unit Hacks 4 | . 4 Recycle Component 1 | . 1 Process 1 | . 1 Report Inventory 1 | . 1 Retrieve Components 1 | . 1 Scanalyzer . | . . Garrison Access Hacks . | . . Unauthorized Hacks . | . . Terminals . | . . Fabricators . | . . Repair Stations . | . . Recycling Units . | . . Scanalyzers . | . . Garrison Access . | . . Data Cores Recovered . | . . Used . | . . Hacking Detections 3 | . 3 Full Trace Events 1 | . 1 Feedback Events . | . . Feedback Blocked . | . . Robot Schematics Acquired . | . . Robots Built . | . . Authchips . | . . Time . | . . Total Robot Build Rating . | . . Part Schematics Acquired . | . . Parts Built . | . . Authchips . | . . Time . | . . Total Part Build Rating . | . . Parts Repaired . | . . Time . | . . Parts Recycled 1 | . 1 Recycled Matter 279 | . 279 Retrieved Matter . | . . Retrieved Components . | . . Parts Scanalyzed . | . . Part Schematics Acquired . | . . Parts Damaged . | . . Bothacking | -11 -10 ------------ Run | Yrd Mat Used RIF Installer . | . . Robots Hacked . | . . Non-combat . | . . Combat . | . . Robot Hacks Applied . | . . Relay Couplers Released . | . . Fabnet Peak Effective % . | . . Robots Rewired . | . . Allies Hacked . | . . Hacks Repelled . | . . Allies | -11 -10 -------- Run | Yrd Mat Total Allies . | . . Largest Group . | . . Highest-Rated Group . | . . Highest-Rated Ally . | . . Total Orders . | . . Ally Attacks . | . . Total Damage . | . . Kills . | . . Allies Corrupted . | . . Allies Melted . | . . Intel | -11 -10 ------- Run | Yrd Mat Robot Analysis Total . | . . Derelict Logs Recovered . | . . Drone Launches . | . . Drone Recoveries . | . . Exploration | -11 -10 ------------- Run | Yrd Mat Turns Passed 741 | 107 634 Spaces Moved 313 | 79 234 Core 71 | 18 53 Treads . | . . Legs 45 | 3 42 Wheels 188 | 58 130 Hover . | . . Flight 9 | . 9 Fastest Speed 50 | 50 80 Average Speed 167 | 74 198 Slowest Speed 530 | 120 530 Overloaded Moves . | . . Propulsion Burnouts . | . . Robots Hopped . | . . Cave-ins Triggered . | . . Exploration Rate (%) 22 | 6 39 Regions Visited 1 Branch Regions . Pre-discovered Areas . | . . Known Exits Taken . | . . Unknown Exits Taken 1 | 1 . Scrap Searched . | . . Spaces Dug . | . . Terrain Destroyed 30 | . 30 Melee . | . . Projectile . | . . AOE 30 | . 30 Terrain Rammed . | . . Walls Destroyed . | . . Machines Disabled . | . . Actions | -11 -10 --------- Run | Yrd Mat Total 452 | 110 342 Wait 40 | 11 29 Move 312 | 78 234 Hop . | . . Pick Up 18 | 6 12 Fast Attach . | . . Attach 14 | 5 9 Detach . | . . Swap 3 | 1 2 Drop 2 | 1 1 Fire 63 | 8 55 Melee . | . . Ram . | . . Kick . | . . Crush . | . . Escape Stasis . | . . Rewire . | . . Trap . | . . Miscellaneous . | . . Route ------- -11/Scrapyard -10/Materials History --------- Turn | Location | Event 2 | -11/Scrapyard | Met Revision 17 62 | -11/Scrapyard | Discovered new exit (range 8) 108 | -11/Scrapyard | Entered Materials 307 | -10/Materials | Build established: Mutant 321 | -10/Materials | Core integrity fell below 50% 340 | -10/Materials | Lost 5 parts (1p2n2w) 625 | -10/Materials | Core integrity fell below 20% 742 | -10/Materials | Destroyed by G-34 Mercenary with Small Laser Last Messages --------------- Flying robots can pass through spaces occupied by others, even hostile robots. Different forms of propulsion may not be used simultaneously, Aluminum Leg automatically deactivated. Acquired Lgt. Assault Rifle. R-06 Scavenger collects Flight Unit. Acquired 14 matter. R-06 Scavenger collects Flight Unit. Triggered Alarm Trap. An alarm sounds. ALERT: Alarm triggered, dispatching investigation squad. Acquired 16 matter. U-05 Engineer lays Concrete. Aluminum Leg destroyed. A-02 Transporter destroyed. [Achievement: Loot Pinata] Flight Unit destroyed. [Achievement: First Step to Greatness] Map ----- +----------------------------------------------------+ | | | | | | | | | | | | | | | ?????????????????????????????????????????????????? | | ?????????????????????????????????????????????????? | | ?????????????????????????????????????????????????? | | ?????????????????????????????????????????????????? | | ?????????????????????????????????????????????????? | | ?????????????????????????????????????????????????? | | ?????????????????????????????????????????????????? | | ?????????????????????????????????????????????????? | | ????????????????????????######???????????????????? | | ????????????? ?????????? ???????????????????? | | ?????????????? ???????? ????????????????????? | | ??????????????? ??????? ????????????????????? | | ??????????????###w###???#g #????????????????????? | | ??????????????? ??#[=%#????????????????????? | | ?????????????????[ ?#%[ #????????????????????? | | ??????????????????? #!= +????????????????????? | | ????????????????????? # #????????????????????? | | ????????????????? ????? g #????????????????????? | | ???????????????? ??????#@ #????????????????????? | | ??????????????###/##????# #????????????????????? | | ??????????????# #???# ##???????????????????? | | ??????????????# ????# # ???????????????????? | | ??????????????# ????# +????????????????????? | | ??????????????# ????# #????????????????????? | | ??????????????? ????# u #????????????????????? | | ???????????????# #????# #????????????????????? | | ???????????????# #????# #????????????????????? | | ???????????????+ #????# #????????????????????? | | ???????????????# #????# #????????????????????? | | ???????????????# ###### #????????????????????? | | ??????????????## #?############???????? | | ??????????????#T #? #???????? | | ??????????????## #? #???????? | | ????????######## ###### # #?####### | | ????????# """ # #????# # ?? #? ^ | | ????????# "R" # #????# # ??? #? | | ????????# " " # ##???# ###+#######+### """? | | ????????# + T#???# # """"? | | ????????# # ##???# + """"" | | ????????# # ###### # """"" | | ????????######## ## ############## # """ | | ???????????????# ## #??????????# # # ^^ | | ???????????????# "" ## #??????????# # # | +----------------------------------------------------+ Best States ------------- Heat Dissipation 25 Energy Generation 10 Energy Capacity 250 Matter Stores 299 Matter Capacity 300 Sight Range 16 Terrain Scan Density 10 Evasion (%) 50 Item Schematics ----------------- None Robot Schematics ------------------ None Fabricated ------------ Nothing Alien Tech Used ----------------- None Achievements -------------- First Step to Greatness Let's See Who's Tougher Loot Pinata One Hack Too Far Uninvited Guest Challenges ------------ None Game ------ Seed ImpulseGravitonSlayer Manual? 0 Play Time 00:25:30 Cumulative 0.3 hours Start 2024.04.01 @ 23:44:00 End 2024.04.02 @ 00:15:28 Sessions 1 Manual Loads 0 Difficulty Rogue Special Mode None Game No. 1 Rogue 1 Adventurer 0 Explorer 0 Win Type - Total 0 Types 0/0/0/0/0/0/0/0/0 Lore% 0 Gallery% 1 Achievement% 1 Wizard Run 0 Options --------- Layout 1 ASCII 0 Keyboard 0 Movement Mouse Keybinds 0 Fullscreen 2 Font 24/Smallcaps Map View 50x35 Zoom Use 0% Tactical HUD 0 Map Filters NONE Filters NONE Steam 1 RUN: 499c6960-7ed1-4974-805b-fb5183d419b3